bitfinex-derivatives/quotes_ETHF0:USTF0_20250320
["timestamp","ask_amount","ask_price","bid_price","bid_amount"]
[1742494177726,2.31605,1970.5,1970.4,2.40696]
[1742494180337,1.3005,1970.5,1970.4,2.40696]
[1742494180838,0.6984,1970.7,1970.6,1.0155]
[1742494181041,2.1194,1970.7,1970.6,1.0155]
[1742494181543,1.421,1970.7,1970.6,2.3787]
[1742494181838,1.421,1970.7,1970.6,5.5865]
[1742494182238,4.7312,1971.0,1970.6,5.5865]
[1742494182239,1.67304,1971.0,1970.9,1.01535]
[1742494183532,9.11281,1971.2,1970.7,5.90563]
[1742494183533,3.2078,1971.2,1970.7,5.90563]
[1742494183731,1.01534,1971.0,1970.9,1.0153]
[1742494185244,1.01535,1970.9,1970.8,2.39756]
[1742494185541,2.36595,1970.9,1970.8,2.39756]
[1742494187038,1.3506,1970.9,1970.6,4.571]
[1742494187241,1.01561,1970.4,1970.3,1.02323206]
[1742494187440,1.01561,1970.4,1970.3,1.02326206]
[1742494187642,1.01561,1970.4,1970.3,2.37226206]
[1742494187942,1.2965,1970.5,1970.4,1.01561]
[1742494188135,2.31205,1970.5,1970.4,2.32101]
[1742494188445,1.2965,1970.5,1970.4,2.32101]
[1742494189839,2.31205,1970.5,1970.4,2.32101]
[1742494191345,1.2965,1970.5,1970.4,2.32101]
[1742494191748,1.01555,1970.6,1970.5,1.01555]
[1742494192047,2.3085,1970.7,1970.6,1.0155]
[1742494192246,2.3085,1970.7,1970.6,2.4283]
[1742494193050,1.293,1970.7,1970.6,2.4283]
[1742494193238,2.30845,1970.7,1970.6,2.4283]
[1742494193740,2.30845,1970.7,1970.6,1.7258]
[1742494197450,1.293,1970.7,1970.6,1.7258]
[1742494197647,2.30845,1970.7,1970.6,1.7258]
[1742494198041,1.293,1970.7,1970.6,1.7258]
[1742494198243,2.30845,1970.7,1970.6,1.7258]
[1742494200740,1.293,1970.7,1970.6,1.7258]
[1742494200947,2.30845,1970.7,1970.6,1.7258]
[1742494201150,1.293,1970.7,1970.6,1.7258]
[1742494201348,2.30845,1970.7,1970.6,1.7258]
[1742494201544,1.293,1970.7,1970.6,1.7258]
[1742494201741,6.44105,1971.0,1970.6,1.7258]
[1742494201742,3.9028,1971.0,1970.6,0.7103]
[1742494201944,0.6498,1971.1,1971.0,1.0153]
[1742494202259,0.00760206,1971.3,1971.2,1.01519]
[1742494202553,1.35120206,1971.3,1971.2,1.01519]
[1742494202946,1.35120206,1971.3,1971.2,2.34569]
[1742494203147,0.00760206,1971.3,1971.2,2.34569]
[1742494203342,0.00760206,1971.3,1971.2,5.55349]
[1742494203547,0.00760206,1971.3,1971.2,13.98949]
[1742494203848,4.2227,1971.8,1971.7,1.01494]
[1742494204250,2.53699,1972.0,1971.5,5.9035]
[1742494204251,1.69468,1971.9,1971.8,1.01488]
[1742494205046,1.32550206,1972.0,1971.9,1.01483]
[1742494205249,0.00760206,1972.0,1971.9,4.38083]
[1742494205452,0.00760206,1972.0,1971.9,5.68703]
[1742494205655,1.32550206,1972.0,1971.9,5.68703]
[1742494206454,2.34028206,1972.0,1971.9,5.68703]
[1742494207352,1.32550206,1972.0,1971.9,5.68703]
[1742494207651,2.34028206,1972.0,1971.9,5.68703]
[1742494208245,1.32550206,1972.0,1971.9,5.68703]
[1742494208446,1.32550206,1972.0,1971.8,3.2078]
[1742494208646,1.01488,1971.8,1971.7,4.75680206]
[1742494208945,1.01488,1971.8,1971.7,3.37260206]
[1742494209351,2.34138,1971.8,1971.7,0.00760206]
[1742494210050,5.54918,1971.8,1971.7,0.00760206]
[1742494210651,1.01509,1971.5,1971.4,1.01508]
[1742494210845,1.01509,1971.4,1971.3,5.07501]
[1742494211041,1.01508,1971.5,1971.4,1.01506]
[1742494211550,1.01508,1971.5,1971.4,2.43336]
[1742494211747,2.34158,1971.5,1971.4,1.4183]
[1742494211948,1.01509,1971.4,1971.3,3.37260206]
[1742494212256,1.01529,1971.1,1971.0,1.01526]
[1742494213454,1.01529,1971.1,1970.9,4.5618]
[1742494213455,2.38539,1971.2,1971.1,1.01525]
[1742494213955,1.3702,1971.2,1971.1,1.01525]
[1742494214255,1.3702,1971.2,1971.1,3.05155]
[1742494214557,1.01514,1971.4,1971.3,1.01514]
[1742494214756,2.38534,1971.4,1971.3,1.01514]
[1742494214965,1.3702,1971.4,1971.3,1.01514]
[1742494215157,1.01508,1971.5,1971.4,1.01509]
[1742494215459,4.22283,1971.6,1971.5,1.01504]
[1742494215655,4.22283,1971.6,1971.4,3.03496]
[1742494215656,1.01504,1971.5,1971.4,3.03496]
[1742494215851,2.30674,1971.5,1971.4,3.03496]
[1742494216362,2.30674,1971.5,1971.4,2.0199]
[1742494216552,2.30674,1971.5,1971.4,3.03499]
[1742494217657,1.2917,1971.5,1971.4,3.03499]
[1742494218453,1.2917,1971.5,1971.4,6.24279]
[1742494218648,1.01497,1971.7,1971.6,1.01499]
[1742494218859,1.3954,1971.7,1971.6,1.01499]
[1742494219060,4.22267,1971.9,1971.8,1.01488]
[1742494219250,3.2078,1971.9,1971.8,1.01488]
[1742494219450,0.00760206,1972.0,1971.7,3.365]
[1742494219451,0.00760206,1972.0,1971.9,1.01483]
[1742494219648,0.00760206,1972.0,1971.9,7.58763]
[1742494219853,0.704,1972.5,1972.2,1.01468]
[1742494220052,1.01462,1972.4,1972.3,1.01461]
[1742494220251,2.40998,1972.4,1972.3,1.01461]
[1742494220451,1.3954,1972.4,1972.3,1.01461]
[1742494221054,2.40998,1972.4,1972.3,1.01461]
[1742494221455,1.3954,1972.4,1972.3,2.34491]
[1742494221858,0.00760206,1972.5,1972.4,1.01458]
[1742494222063,0.00760206,1972.5,1972.4,2.34488]
[1742494222258,1.29800206,1972.5,1972.4,2.34488]
[1742494222665,2.31252206,1972.5,1972.4,2.34488]
[1742494222960,1.29800206,1972.5,1972.4,2.34488]
[1742494224767,0.00760206,1972.5,1972.4,2.34488]
[1742494225356,1.41920206,1972.5,1972.4,2.34488]
[1742494226069,2.43372206,1972.5,1972.4,1.3303]
[1742494226362,2.43372206,1972.5,1972.4,1.01458]
[1742494226865,1.41920206,1972.5,1972.4,1.01458]
[1742494227065,0.00760206,1972.5,1972.4,2.33458]
[1742494227271,1.4116,1972.9,1972.8,1.01437]
[1742494227569,1.72343,1973.1,1973.0,1.01427]
[1742494227766,1.01419,1973.2,1973.0,1.01427]
[1742494227972,3.2078,1973.3,1972.8,5.89992]
[1742494228276,1.0142,1973.2,1973.1,1.0142]
[1742494228470,1.02180206,1973.2,1973.1,1.0142]
[1742494228871,2.31980206,1973.2,1973.1,2.4205]
[1742494230274,1.01422,1973.1,1973.0,3.364]
[1742494230470,2.36112,1973.1,1973.0,3.364]
[1742494231069,4.5547,1973.1,1972.7,0.68]
[1742494231264,1.01442,1972.7,1972.6,4.7258]
[1742494231661,2.36131,1972.8,1972.7,1.01442]
[1742494231867,2.36131,1972.8,1972.7,2.37722]
[1742494232067,2.36127,1972.8,1972.7,2.37722]
[1742494232367,1.3469,1972.8,1972.7,2.37722]
[1742494233274,2.36127,1972.8,1972.7,2.37722]
[1742494233572,1.3469,1972.8,1972.7,2.37722]
[1742494234069,1.01429,1973.0,1972.9,1.01432]
[1742494234278,1.2931,1973.0,1972.9,1.01432]
[1742494234466,0.00760206,1973.2,1973.1,1.01422]
[1742494234673,1.30070206,1973.2,1973.1,1.01422]
[1742494234970,1.30070206,1973.2,1973.1,2.35572]
[1742494237678,2.31486206,1973.2,1973.1,2.35572]
[1742494238370,1.01422,1973.1,1973.0,4.37724]
[1742494238570,2.35142,1973.1,1973.0,1.01424]
[1742494238873,1.01427,1973.0,1972.9,4.37628]
[1742494239075,1.01432,1972.9,1972.8,1.3789]
[1742494239275,1.01432,1972.9,1972.8,1.01433]
[1742494239475,2.35152,1972.9,1972.8,1.01433]
[1742494239678,2.35152,1972.9,1972.8,2.36633]
[1742494240270,1.3372,1972.9,1972.8,2.36633]
[1742494240471,2.35152,1972.9,1972.8,2.36633]
[1742494240777,1.3372,1972.9,1972.8,2.36633]
[1742494241268,2.35152,1972.9,1972.8,2.36633]
[1742494241471,1.3372,1972.9,1972.8,2.36633]
[1742494242374,2.35152,1972.9,1972.8,2.36633]
[1742494242573,2.35152,1972.9,1972.8,1.01433]
[1742494242776,1.3372,1972.9,1972.8,1.01433]
[1742494243077,2.35152,1972.9,1972.8,2.31473]
[1742494243577,1.3372,1972.9,1972.8,5.52253]
[1742494244584,2.35152,1972.9,1972.8,5.52253]
[1742494246273,1.3372,1972.9,1972.8,5.52253]
[1742494246581,0.6457,1973.1,1973.0,1.01422]
[1742494246582,1.01426,1973.1,1973.0,1.01422]
[1742494246773,1.67339206,1973.2,1973.1,1.01422]
[1742494246975,0.65920206,1973.2,1973.1,1.01422]
[1742494247880,1.95290206,1973.2,1973.1,1.01422]
[1742494248477,1.30130206,1973.2,1973.1,5.04972]
[1742494248681,2.31546206,1973.2,1973.1,5.04972]
[1742494248879,2.31546206,1973.2,1973.1,6.45892]
[1742494249080,2.31546206,1973.2,1973.1,5.4447]
[1742494249273,2.31546206,1973.2,1973.1,4.37622]
[1742494250081,2.31546206,1973.2,1973.1,1.01422]
[1742494254693,1.30130206,1973.2,1973.1,1.01422]
[1742494254890,4.87345,1973.5,1973.4,1.01406]
[1742494255587,3.8594,1973.5,1973.4,1.01406]
[1742494255783,5.89552,1973.9,1973.4,4.22186]
[1742494255985,1.01391,1973.8,1973.7,1.01387]
[1742494256186,1.32470206,1973.8,1973.7,1.01387]
[1742494256487,2.33856206,1973.8,1973.7,2.33537]
[1742494257190,2.33856206,1973.8,1973.6,4.86732]
[1742494257191,1.01391,1973.7,1973.6,4.86732]
[1742494257489,2.33101,1973.7,1973.6,4.22172]
[1742494257691,2.33101,1973.7,1973.6,5.54322]
[1742494258385,1.01396,1973.6,1973.5,1.02159206]
[1742494258591,2.33146,1973.6,1973.5,1.02161206]
[1742494258985,2.33146,1973.6,1973.5,0.00760206]
[1742494259688,2.98616,1973.6,1973.5,0.00760206]
[1742494261892,1.01416,1973.2,1973.1,3.8814]
[1742494262097,1.01416,1973.2,1973.1,6.24422]
[1742494262490,1.01416,1973.2,1973.1,5.23]
[1742494262690,1.01416,1973.2,1973.1,3.2078]
[1742494262886,1.01427,1973.0,1972.9,4.22209]
[1742494263086,2.53516,1973.5,1973.0,0.00760206]
[1742494263388,5.07425,1973.5,1973.4,1.01406]
[1742494263583,3.09535,1973.5,1973.4,1.01406]
[1742494263985,3.09535,1973.5,1973.4,2.35916]
[1742494264391,1.3821,1973.5,1973.4,2.35916]
[1742494264891,2.39611,1973.5,1973.4,2.35916]
[1742494265795,1.3821,1973.5,1973.4,2.35916]
[1742494266596,1.3821,1973.5,1973.4,5.72016]
[1742494266783,2.39611,1973.5,1973.4,5.72016]
[1742494266990,1.3821,1973.5,1973.4,5.72016]
[1742494267501,1.01393,1973.7,1973.6,1.01396]
[1742494267693,1.3663,1973.7,1973.6,1.01396]
[1742494267999,1.01396,1973.6,1973.5,2.97429]
[1742494268385,2.38026,1973.6,1973.5,2.97429]
[1742494268998,1.3663,1973.6,1973.5,6.18209]
[1742494270197,2.38026,1973.6,1973.5,6.18209]
[1742494270695,1.01396,1973.6,1973.5,6.18209]
[1742494271093,1.01396,1973.6,1973.5,4.5077]
[1742494271395,1.01396,1973.6,1973.5,3.2078]
[1742494271593,1.01406,1973.4,1973.3,3.2078]
[1742494272300,3.07636,1973.4,1973.3,5.50291]
[1742494273294,3.07636,1973.4,1973.3,3.2078]
[1742494273494,3.07636,1973.4,1973.3,4.22191]
[1742494273997,3.07636,1973.4,1973.3,3.2078]
[1742494274301,3.07636,1973.4,1973.3,4.22191]
[1742494274702,2.54230206,1973.8,1973.3,10.11708]
[1742494274894,1.3682,1973.6,1973.5,1.01401]
[1742494275095,1.3682,1973.6,1973.5,2.31771]
[1742494275795,2.38216,1973.6,1973.5,2.31771]
[1742494276002,0.66680206,1973.8,1973.7,1.01391]
[1742494276003,0.00760206,1973.8,1973.7,1.01391]
[1742494276297,2.39216206,1973.8,1973.7,4.22171]
[1742494276501,1.37830206,1973.8,1973.7,4.22171]
[1742494277295,0.6592,1974.1,1973.7,7.58171]
[1742494277498,1.01357,1974.4,1974.0,2.53439]
[1742494277697,1.01352,1974.5,1974.4,1.01349]
[1742494278097,1.01342,1974.7,1974.6,1.01339]
[1742494278299,1.01342,1974.7,1974.6,4.22119]
[1742494278493,0.00760206,1974.8,1974.5,3.36760206]
[1742494278695,2.38415,1974.6,1974.5,3.36760206]
[1742494278905,2.38415,1974.6,1974.5,4.90779228]
[1742494279101,1.3707,1974.6,1974.5,4.90779228]
[1742494279303,1.02097206,1974.8,1974.7,1.01339]
[1742494279505,1.02097206,1974.8,1974.7,4.22119]
[1742494279698,1.02097206,1974.8,1974.7,4.74724729]
[1742494279894,0.00760206,1974.8,1974.7,4.74724729]
[1742494280097,0.00760206,1974.8,1974.7,4.22119]
[1742494281105,0.00760206,1974.8,1974.7,4.74677799]
[1742494281295,0.00760206,1974.8,1974.7,8.10577799]
[1742494281499,1.02094206,1974.8,1974.7,7.78788799]
[1742494281704,1.02094206,1974.8,1974.7,9.61299]
[1742494282007,1.02094206,1974.8,1974.7,8.5996]
[1742494282302,1.02094206,1974.8,1974.7,4.6963]
[1742494282515,1.02094206,1974.8,1974.7,3.359]
[1742494284009,1.02094206,1974.8,1974.7,4.37239]
[1742494284309,1.02094206,1974.8,1974.7,3.359]
[1742494284511,1.02094206,1974.8,1974.7,1.01339]
[1742494284802,1.02094206,1974.8,1974.7,1.3082]
[1742494285008,1.01339,1974.7,1974.6,3.2078]
[1742494285309,2.42759,1974.7,1974.6,5.52945]
[1742494286304,1.4142,1974.7,1974.6,5.52945]
[1742494287307,0.00760206,1974.8,1974.7,1.01339]
[1742494287613,0.00760206,1974.8,1974.7,5.68649]
[1742494287910,0.00760206,1974.8,1974.7,6.21055339]
[1742494288405,0.00760206,1974.8,1974.7,5.68649]
[1742494288813,0.00760206,1974.8,1974.7,6.33129]
[1742494289011,0.00760206,1974.8,1974.7,6.85514701]
[1742494289310,0.00760206,1974.8,1974.7,6.33129]
[1742494289713,0.00760206,1974.8,1974.7,6.71927673]
[1742494291711,0.00760206,1974.8,1974.7,15.15527673]
[1742494292514,0.00760206,1974.8,1974.7,15.67872329]
[1742494292810,0.6478,1975.4,1975.3,1.01309]
[1742494293010,1.66084,1975.4,1975.3,1.01309]
[1742494293206,1.01313,1975.3,1975.2,1.01309]
[1742494293513,1.01314,1975.2,1975.1,4.37115]
[1742494294102,1.36656802,1975.3,1975.2,1.0131]
[1742494294406,1.36656802,1975.3,1975.2,2.3698]
[1742494294808,1.01293,1975.7,1975.6,1.0129]
[1742494295107,7.04174,1976.0,1975.4,9.09837]
[1742494295309,1.01287,1975.8,1975.7,1.01284]
[1742494295507,1.01298,1975.5,1975.4,7.57878]
[1742494295715,5.73988,1975.8,1975.2,2.53283]
[1742494295716,2.53223,1975.7,1975.2,3.2078]
[1742494295904,1.01303,1975.5,1975.4,4.22081]
[1742494296210,1.01304,1975.4,1975.3,4.37865206]
[1742494296416,2.30904,1975.4,1975.3,0.00760206]
[1742494297112,1.296,1975.4,1975.3,1.02069206]
[1742494297312,1.296,1975.4,1975.3,4.37769206]
[1742494297813,2.30904,1975.4,1975.3,4.37769206]
[1742494299213,1.296,1975.4,1975.3,4.37769206]
[1742494300111,2.30904,1975.4,1975.3,0.00760206]
[1742494302320,3.00094,1975.4,1975.3,0.00760206]
[1742494304815,1.01324,1975.0,1974.9,5.50985]
[1742494305029,1.01324,1975.0,1974.9,6.0348508]
[1742494305321,1.01324,1975.0,1974.8,4.0397]
[1742494305322,1.01334,1974.9,1974.8,3.2078]
[1742494305618,1.01334,1974.9,1974.8,4.74673205]
[1742494305922,1.01334,1974.9,1974.8,4.74671291]
[1742494306121,1.01329,1974.9,1974.8,4.74671291]
[1742494306313,2.35589,1974.9,1974.8,4.74671291]
[1742494307322,2.35589,1974.9,1974.8,5.42228168]
[1742494307526,2.35589,1974.9,1974.8,4.40898168]
[1742494307823,2.35589,1974.9,1974.8,2.21548912]
[1742494308120,2.35589,1974.9,1974.8,1.53989729]
[1742494308321,2.35589,1974.9,1974.8,2.92339729]
[1742494309114,2.35589,1974.9,1974.8,3.59902738]
[1742494309621,2.35589,1974.9,1974.8,4.29552738]
[1742494310025,1.3426,1974.9,1974.8,4.29552738]
[1742494310222,2.35589,1974.9,1974.8,4.29552738]
[1742494310420,2.35589,1974.9,1974.8,2.21552738]
[1742494310723,2.35589,1974.9,1974.8,1.20238881]
[1742494311113,2.35589,1974.9,1974.8,1.20250711]
[1742494311612,1.01334,1974.8,1974.7,3.21540206]
[1742494311822,1.01334,1974.8,1974.7,1.21056209]
[1742494311823,2.33734,1974.8,1974.7,1.21056209]
[1742494312121,2.33734,1974.8,1974.7,5.43175209]
[1742494312318,2.33734,1974.8,1974.7,3.74231891]
[1742494312514,2.33734,1974.8,1974.7,4.75570891]
[1742494312725,2.33734,1974.8,1974.7,4.41844246]
[1742494312925,2.33734,1974.8,1974.7,1.54790891]
[1742494313226,2.33734,1974.8,1974.7,1.86291891]
[1742494313619,2.33734,1974.8,1974.7,1.86304456]
[1742494313826,2.33734,1974.8,1974.7,3.57273456]
[1742494314323,2.33734,1974.8,1974.7,1.86304456]
[1742494314920,2.33734,1974.8,1974.7,0.53464456]
[1742494315627,2.33734,1974.8,1974.7,0.534798]
[1742494317227,2.33734,1974.8,1974.7,1.548188]
[1742494317427,2.33734,1974.8,1974.7,3.57668148]
[1742494317618,2.33734,1974.8,1974.7,3.04947469]
[1742494317816,2.33734,1974.8,1974.7,3.57679425]
[1742494319029,1.01334,1974.9,1974.8,1.0133]
[1742494319322,2.41494,1974.9,1974.8,2.84351956]
[1742494320225,2.41494,1974.9,1974.8,3.51937722]
[1742494320422,2.41494,1974.9,1974.8,0.52731956]
[1742494321021,1.01334,1974.8,1974.7,1.02099206]
[1742494321228,2.41494,1974.8,1974.7,0.53435038]
[1742494321427,2.41494,1974.8,1974.7,1.54774038]
[1742494321619,1.4016,1974.8,1974.7,5.43120423]
[1742494321821,2.41494,1974.8,1974.7,5.43120423]
[1742494322127,1.01333,1974.9,1974.8,1.01329]
[1742494322326,1.01333,1974.9,1974.8,2.88973832]
[1742494322921,1.01333,1974.9,1974.8,2.88954102]
[1742494323121,1.02087206,1975.0,1974.9,1.01329]
[1742494323321,0.00760206,1975.0,1974.9,6.77564102]
[1742494323526,0.00760206,1975.0,1974.9,7.45121396]
[1742494323827,6.5761,1975.4,1975.2,1.01309]
[1742494324028,2.30075,1975.3,1975.2,1.01309]
[1742494324221,2.30075,1975.3,1975.2,1.53945797]
[1742494324820,2.30075,1975.3,1975.2,2.23480128]
[1742494326420,2.30075,1975.3,1975.2,1.22171128]
[1742494327121,2.30075,1975.3,1975.2,2.23485128]
[1742494328829,2.30075,1975.3,1975.2,2.23501079]
[1742494329531,1.01307,1975.5,1975.4,1.01299]
[1742494329729,2.40167,1975.5,1975.4,1.53936079]
[1742494330027,2.40167,1975.5,1975.4,0.52637079]
[1742494330235,2.40167,1975.5,1975.4,1.53941079]
[1742494330620,2.40167,1975.5,1975.4,1.53955666]
[1742494331431,2.40158,1975.5,1975.4,1.53955666]
[1742494331627,1.01297,1975.6,1975.5,1.01293]
[1742494331825,3.2078,1975.9,1975.6,1.01289]
[1742494332025,3.2078,1975.9,1975.7,2.34507]
[1742494332026,2.41193,1975.8,1975.7,2.34507]
[1742494332226,2.41193,1975.8,1975.7,1.3322]
[1742494332627,2.41193,1975.8,1975.7,2.34508]
[1742494333129,2.41193,1975.8,1975.7,1.3322]
[1742494333434,2.41193,1975.8,1975.7,0.6474]
[1742494333835,2.41193,1975.8,1975.7,1.66028]
[1742494334036,2.41193,1975.8,1975.7,2.18621477]
[1742494334230,2.41193,1975.8,1975.7,0.6474]
[1742494334438,2.41193,1975.8,1975.7,1.66028]
[1742494334731,2.41193,1975.8,1975.7,1.17313662]
[1742494335043,2.41193,1975.8,1975.7,2.18601662]
[1742494336330,2.41193,1975.8,1975.7,0.6474]
[1742494337227,2.41193,1975.8,1975.7,1.66028]
[1742494337623,2.41193,1975.8,1975.7,0.6474]
[1742494337831,1.01293,1975.6,1975.5,7.2496]
[1742494338037,1.01293,1975.6,1975.5,3.73316173]
[1742494338641,1.67563,1975.6,1975.5,4.74614173]
[1742494339435,1.01293,1975.6,1975.5,4.74614173]
[1742494340542,1.01293,1975.6,1975.5,8.10196042]
[1742494340938,1.01293,1975.6,1975.5,7.08898042]
[1742494341137,1.01293,1975.6,1975.5,3.2078]
[1742494341835,1.66443,1975.6,1975.5,3.2078]
[1742494342035,1.66443,1975.6,1975.3,5.74005]
[1742494342036,1.01304,1975.4,1975.3,1.371]
[1742494342238,1.01304,1975.4,1975.3,0.6667]
[1742494342431,1.01304,1975.4,1975.3,1.67979]
[1742494342633,2.34914,1975.4,1975.3,3.02449]
[1742494342930,2.34914,1975.4,1975.3,2.0114]
[1742494343332,2.34914,1975.4,1975.3,3.02449]
[1742494344242,1.3361,1975.4,1975.3,3.02449]
[1742494344431,1.3361,1975.4,1975.3,3.5500486]
[1742494344736,2.34914,1975.4,1975.3,3.5500486]
[1742494344939,2.34914,1975.4,1975.3,2.5369586]
[1742494345138,3.86878,1975.4,1975.0,8.25632]
[1742494345346,1.01319,1975.1,1975.0,4.90032]
[1742494345536,1.01319,1975.1,1975.0,4.41291859]
[1742494345740,1.01324,1975.0,1974.9,4.0068]
[1742494345933,1.01324,1975.0,1974.9,8.75382278]
[1742494346842,2.38641,1975.1,1975.0,1.01324]
[1742494347037,2.38641,1975.1,1975.0,2.90357278]
[1742494348439,2.38641,1975.1,1975.0,2.90381172]
[1742494349137,1.01324,1975.0,1974.9,3.8586]
[1742494349344,3.03414,1975.0,1974.9,6.42391283]
[1742494349543,3.03414,1975.0,1974.9,5.74901969]
[1742494349942,3.03414,1975.0,1974.9,6.76227969]
[1742494350144,1.01321,1975.1,1975.0,1.01324]
[1742494350343,2.38995,1975.2,1975.1,1.01319]
[1742494350538,2.38995,1975.2,1975.1,3.59109377]
[1742494350742,1.3768,1975.2,1975.1,6.79889377]
[1742494350946,5.7399,1975.8,1975.5,1.01294]
[1742494351253,1.3768,1975.6,1975.5,1.01294]
[1742494351438,2.38977,1975.6,1975.5,1.53876199]
[1742494351643,2.38977,1975.6,1975.5,3.59066199]
[1742494351841,1.01289,1975.7,1975.6,1.01293]
[1742494352137,1.3768,1975.7,1975.6,2.93705199]
[1742494352544,2.38968,1975.7,1975.6,3.61175391]
[1742494352749,1.3768,1975.7,1975.6,6.81955391]
[1742494353248,2.38968,1975.7,1975.6,6.81955391]
[1742494353449,1.3768,1975.7,1975.6,6.81955391]
[1742494353649,1.3768,1975.7,1975.6,6.144884]
[1742494354051,2.38968,1975.7,1975.6,2.937084]
[1742494354445,2.38968,1975.7,1975.6,0.525854]
[1742494354746,2.38968,1975.7,1975.6,1.538784]
[1742494355051,2.38968,1975.7,1975.6,2.34663]
[1742494355252,2.38968,1975.7,1975.6,1.3337]
[1742494355549,2.38968,1975.7,1975.6,1.85959518]
[1742494355948,2.38968,1975.7,1975.6,0.52589518]
[1742494356143,1.01293,1975.6,1975.5,4.7482]
[1742494356349,3.05843,1975.6,1975.5,5.27416792]
[1742494356547,3.05843,1975.6,1975.5,0.52596792]
[1742494358149,1.01304,1975.4,1975.3,3.80184]
[1742494358350,1.01304,1975.4,1975.3,3.61074676]
[1742494358749,1.3813,1975.5,1975.4,1.01304]
[1742494358949,1.3813,1975.5,1975.4,4.74694361]
[1742494359549,2.39428,1975.5,1975.4,4.74694361]
[1742494359843,2.39428,1975.5,1975.4,0.52610361]
[1742494360053,2.39428,1975.5,1975.4,1.53914361]
[1742494360848,2.39428,1975.5,1975.4,4.74694361]
[1742494361645,1.3813,1975.5,1975.4,4.74694361]
[1742494361845,1.3813,1975.5,1975.4,5.42190137]
[1742494362046,1.3813,1975.5,1975.4,5.42194038]
[1742494362852,2.39428,1975.5,1975.4,5.42194038]
[1742494363454,2.39428,1975.5,1975.4,5.42218565]
[1742494364851,2.39428,1975.5,1975.4,4.40914565]
[1742494365063,3.05808,1975.5,1975.4,0.52618395]
[1742494365553,6.26588,1975.5,1975.4,0.52618395]
[1742494365757,1.01319,1975.1,1975.0,2.3592]
[1742494365956,1.01319,1975.1,1975.0,6.76910841]
[1742494366554,2.36439,1975.1,1975.0,6.76910841]
[1742494367858,2.36439,1975.1,1975.0,6.76892927]
[1742494368161,1.3512,1975.1,1975.0,6.76892927]
[1742494368458,2.36439,1975.1,1975.0,6.76892927]
[1742494369960,2.36439,1975.1,1975.0,6.76861643]
[1742494371452,1.3512,1975.1,1975.0,6.76861643]
[1742494371657,2.36439,1975.1,1975.0,6.76861643]
[1742494371857,2.36439,1975.1,1975.0,6.76864235]
[1742494372166,1.3512,1975.1,1975.0,6.76864235]
[1742494372356,2.36439,1975.1,1975.0,6.76864235]
[1742494372663,1.01318,1975.2,1975.1,1.01319]
[1742494372863,2.38798,1975.2,1975.1,3.63133235]
[1742494373763,2.38798,1975.2,1975.1,3.63141783]
[1742494375865,2.38798,1975.2,1975.1,3.63169883]
[1742494377759,2.38798,1975.2,1975.1,3.63167269]
[1742494379664,2.38798,1975.2,1975.1,1.20198269]
[1742494380369,2.38798,1975.2,1975.1,0.52648783]
[1742494380668,8.24298,1975.2,1975.1,0.52648783]
[1742494380969,1.01334,1974.8,1974.7,1.02099206]
[1742494381268,1.01334,1974.8,1974.7,2.04362108]
[1742494381668,1.01334,1974.8,1974.7,0.00760206]
[1742494381969,1.66804,1974.8,1974.7,0.00760206]
[1742494383066,1.0135,1974.5,1974.4,3.2078]
[1742494383266,1.0135,1974.5,1974.4,5.5621167]
[1742494383465,1.0135,1974.5,1974.4,4.5485667]
[1742494384173,1.0135,1974.5,1974.4,4.54843185]
[1742494384372,1.0135,1974.5,1974.4,6.94178185]
[1742494384676,1.0135,1974.5,1974.4,5.92823185]
[1742494384877,1.0135,1974.5,1974.4,5.2533]
[1742494385167,1.0135,1974.5,1974.4,6.26685]
[1742494385371,1.0135,1974.5,1974.4,6.94150752]
[1742494386264,1.0135,1974.5,1974.4,6.26685]
[1742494386465,2.30789206,1974.6,1974.5,1.0135]
[1742494386664,2.30789206,1974.6,1974.5,3.06000684]
[1742494386865,2.30789206,1974.6,1974.5,2.3856]
[1742494387169,2.30789206,1974.6,1974.5,3.05998712]
[1742494387371,2.30789206,1974.6,1974.5,1.3721]
[1742494387762,2.30789206,1974.6,1974.5,2.3856]
[1742494387966,1.29440206,1974.6,1974.5,2.3856]
[1742494388273,0.00760206,1974.6,1974.5,2.3856]
[1742494388474,0.00760206,1974.6,1974.5,6.41587853]
[1742494388877,0.00760206,1974.6,1974.5,6.41583531]
[1742494391774,0.00760206,1974.6,1974.5,14.82683531]
[1742494392272,1.01328,1975.0,1974.9,1.01324]
[1742494393579,2.40098,1975.0,1974.9,2.37314]
[1742494393778,2.40098,1975.0,1974.9,1.3599]
[1742494393979,2.40098,1975.0,1974.9,2.37319]
[1742494394577,1.3877,1975.0,1974.9,2.37319]
[1742494394780,2.40094,1975.0,1974.9,3.73942627]
[1742494394969,2.40094,1975.0,1974.9,3.06509]
[1742494395279,2.40094,1975.0,1974.9,3.73946261]
[1742494395784,1.3877,1975.0,1974.9,3.73946261]
[1742494396173,2.40094,1975.0,1974.9,3.73946261]
[1742494396684,1.01318,1975.2,1975.1,1.01314]
[1742494396886,2.34198,1975.2,1975.1,4.22094]
[1742494397784,2.34198,1975.2,1975.1,5.59034]
[1742494397989,1.3288,1975.2,1975.1,5.59034]
[1742494398178,1.3288,1975.2,1975.1,6.26506401]
[1742494398380,1.3137,1975.5,1975.3,1.01304]
[1742494398581,2.29827,1975.4,1975.3,1.01304]
[1742494398777,2.29827,1975.4,1975.3,3.2078]
[1742494398978,1.01319,1975.1,1975.0,4.22101]
[1742494399182,1.01319,1975.1,1975.0,3.2078]
[1742494399384,1.01319,1975.1,1975.0,4.22104]
[1742494399684,1.9374,1975.2,1974.8,50.0198]
[1742494399685,4.47027,1975.2,1974.8,50.0198]
[1742494399884,1.01329,1974.9,1974.8,51.0331]
[1742494400686,1.66549,1974.9,1974.8,50.0198]
[1742494400993,1.01334,1974.8,1974.7,5.04259]